bitfinex/quotes_SOLUSD_20250922
["timestamp","ask_amount","ask_price","bid_price","bid_amount"]
[1758518167524,0.66,231.96,231.86,0.67]
[1758518168431,0.66,231.96,231.87,15.09466511]
[1758518168631,0.66,231.96,231.88,0.67]
[1758518169533,162.33993203,231.99,231.88,0.67]
[1758518169736,0.66,231.98,231.88,0.67]
[1758518170551,0.66,231.98,231.89,15.09336322]
[1758518170754,0.66,231.98,231.9,0.72]
[1758518171554,0.66,231.98,231.91,4.31201759]
[1758518171841,0.69,231.97,231.9,5.03218838]
[1758518172050,0.69,231.97,231.9,15.81269722]
[1758518172634,0.69,231.97,231.9,5.03218838]
[1758518173548,0.69,231.97,231.91,0.72]
[1758518174423,135.45049035,231.99,231.91,0.72]
[1758518174424,131.13993203,231.99,231.91,0.72]
[1758518175531,131.13993203,231.99,231.92,15.09141082]
[1758518175732,131.13993203,231.99,231.93,0.72]
[1758518177858,131.13993203,231.99,231.94,4.31145986]
[1758518178030,131.82993203,231.99,231.94,5.03145986]
[1758518178235,131.82993203,231.99,231.95,0.72]
[1758518178555,131.13993203,231.99,231.95,0.72]
[1758518178941,131.13993203,231.99,231.94,4.31145986]
[1758518179145,131.82993203,231.99,231.94,4.31145986]
[1758518179445,131.82993203,231.99,231.94,5.03145986]
[1758518184656,131.13993203,231.99,231.95,0.72]
[1758518184830,131.13993203,231.99,231.92,10.77957916]
[1758518185164,131.13993203,231.99,231.93,0.72]
[1758518185756,162.33993203,232.07,231.93,0.72]
[1758518185958,0.69,232.05,231.93,33.96]
[1758518186162,0.69,232.05,231.94,0.72]
[1758518186741,4.99942966,232.05,231.95,15.08945893]
[1758518186940,0.72,232.04,231.96,0.71]
[1758518187739,0.72,232.04,231.97,4.31090227]
[1758518187944,0.72,232.04,231.97,5.02090227]
[1758518188359,4.30942966,232.05,231.97,5.02090227]
[1758518188360,0.72,232.03,231.97,5.02090227]
[1758518190646,0.72,232.03,231.98,0.71]
[1758518191468,0.72,232.03,231.99,0.71]
[1758518191658,0.72,232.03,231.97,0.71]
[1758518191848,0.72,232.03,231.95,4.31127398]
[1758518192052,0.72,232.02,231.91,35.51190989]
[1758518192253,0.72,232.01,231.9,0.71]
[1758518192451,0.72,232.01,231.89,4.31238949]
[1758518192658,5.03034482,232.0,231.9,0.71]
[1758518192842,33.24,231.99,231.9,0.71]
[1758518193044,0.72,231.98,231.9,0.71]
[1758518195065,0.72,232.02,231.9,15.80261093]
[1758518195366,31.2,232.02,231.91,0.71]
[1758518195558,31.2,232.02,231.92,33.24]
[1758518195746,31.2,232.02,231.93,0.71]
[1758518196968,31.2,232.02,231.94,15.09010951]
[1758518197148,31.2,232.02,231.95,0.71]
[1758518197548,31.2,232.03,231.95,0.71]
[1758518197748,36.22979272,232.03,231.95,0.71]
[1758518198172,31.2,232.02,231.95,0.71]
[1758518198752,31.92,232.02,231.95,0.71]
[1758518198976,31.92,232.02,231.96,4.31108811]
[1758518199352,31.92,232.02,231.96,5.02108811]
[1758518199765,0.72,232.02,231.96,5.02108811]
[1758518201548,0.72,232.02,231.97,0.71]
[1758518201748,31.2,232.03,231.98,0.71]
[1758518201967,31.92,232.03,231.98,0.71]
[1758518202573,31.2,232.03,231.98,5.02066489]
[1758518202869,0.72,232.02,231.98,4.31066489]
[1758518203866,0.72,232.02,231.98,0.71]
[1758518204849,0.72,232.02,231.98,5.02065983]
[1758518206757,131.13993203,232.06,231.99,0.71]
[1758518207369,0.72,232.05,231.99,0.71]
[1758518208679,0.72,232.05,232.0,4.31034482]
[1758518208877,0.72,232.05,232.01,0.71]
[1758518209558,131.13993203,232.06,232.01,5.02012379]
[1758518209759,131.85993203,232.06,232.01,5.02012379]
[1758518212257,131.85993203,232.06,232.01,0.71]
[1758518212456,135.44919529,232.06,232.01,0.71]
[1758518212677,0.72,232.05,232.01,0.71]
[1758518214779,0.72,232.05,232.01,5.02015369]
[1758518215659,135.44919529,232.06,232.01,5.02015369]
[1758518215860,136.16919529,232.06,232.01,5.02015369]
[1758518216287,131.85993203,232.06,232.01,4.31015369]
[1758518216481,131.85993203,232.06,232.02,0.71]
[1758518216681,131.13993203,232.06,232.02,0.71]
[1758518217175,131.85993203,232.06,232.02,0.71]
[1758518217690,131.13993203,232.06,232.02,5.01997058]
[1758518218066,31.2,232.07,232.02,4.96997058]
[1758518218372,0.72,232.06,232.02,0.66]
[1758518218575,0.72,232.06,232.0,4.31034482]
[1758518218776,0.72,232.06,232.01,0.66]
[1758518219080,0.72,232.05,231.99,0.66]
[1758518219779,0.72,232.05,232.0,4.31034482]
[1758518219984,0.72,232.05,232.01,0.66]
[1758518221187,31.2,232.02,231.93,0.66]
[1758518221502,31.2,232.02,231.92,4.31183166]
[1758518221503,31.2,232.02,231.94,0.66]
[1758518221689,15.08230629,232.06,231.94,0.66]
[1758518221690,31.2,232.04,231.94,0.66]
[1758518221874,31.92,232.04,231.94,0.66]
[1758518222389,33.22,232.03,231.93,0.66]
[1758518222575,31.2,232.0,231.93,0.66]
[1758518222973,31.92,232.0,231.93,0.66]
[1758518223281,31.92,232.0,231.93,4.97149517]
[1758518223282,36.230367,232.0,231.93,4.97149517]
[1758518224490,31.92,232.0,231.93,4.97149517]
[1758518224872,0.72,231.99,231.91,4.97200679]
[1758518225078,0.72,231.98,231.91,4.97200679]
[1758518225275,79.50621779,232.0,231.88,13.86654193]
[1758518225474,0.72,231.97,231.89,0.66]
[1758518225971,0.72,231.97,231.86,4.31278231]
[1758518226172,0.72,231.96,231.87,4.97275759]
[1758518226386,0.72,231.95,231.88,0.66]
[1758518226786,31.92,231.95,231.88,0.66]
[1758518227292,31.92,231.95,231.85,23.66107109]
[1758518227293,31.2,231.93,231.85,17.85169429]
[1758518227474,0.72,231.92,231.84,4.31331017]
[1758518227789,31.92,231.93,231.85,0.66]
[1758518228189,33.22,231.95,231.86,4.31294746]
[1758518228494,5.03112975,231.96,231.87,0.66]
[1758518228697,38.25112975,231.96,231.87,0.66]
[1758518229375,33.94,231.96,231.87,0.66]
[1758518229776,0.72,231.96,231.87,0.66]
[1758518229977,5.031123,231.96,231.87,0.66]
[1758518230189,5.031123,231.96,231.88,4.31257547]
[1758518230373,0.72,231.96,231.89,0.66]
[1758518230791,5.03109814,231.96,231.89,0.66]
[1758518231193,0.72,231.96,231.89,0.66]
[1758518231788,31.92,231.96,231.89,0.66]
[1758518232192,31.92,231.96,231.9,4.31220353]
[1758518233903,31.92,231.96,231.9,0.72]
[1758518234414,33.89,231.98,231.9,0.72]
[1758518235404,38.2007354,231.98,231.9,0.72]
[1758518237605,38.2007354,231.98,231.91,4.31201759]
[1758518237791,0.67,231.97,231.91,4.31201759]
[1758518237991,0.67,231.96,231.91,4.31201759]
[1758518238491,33.89,231.98,231.92,0.72]
[1758518240006,162.33993203,231.99,231.93,4.31164575]
[1758518240207,162.33993203,231.99,231.94,0.72]
[1758518240388,163.00993203,231.99,231.94,0.72]
[1758518241410,163.00993203,231.99,231.95,4.31127398]
[1758518241604,0.67,231.98,231.92,5.03183166]
[1758518242307,0.67,231.98,231.92,4.31183166]
[1758518242495,162.33993203,231.99,231.93,0.72]
[1758518243412,163.00993203,231.99,231.94,4.31145986]
[1758518243599,0.67,231.98,231.94,4.31145986]
[1758518244035,162.33993203,231.99,231.92,4.31166329]
[1758518244210,0.67,231.97,231.89,4.31238949]
[1758518244393,33.22,231.98,231.89,4.31238949]
[1758518244394,0.67,231.96,231.89,4.31238949]
[1758518244592,0.67,231.95,231.89,4.31238949]
[1758518245400,0.67,231.95,231.89,5.03238949]
[1758518245802,31.2,231.92,231.85,0.72]
[1758518246000,0.67,231.91,231.84,5.03331953]
[1758518246220,0.67,231.9,231.84,4.31331953]
[1758518246411,0.67,231.89,231.84,4.31331953]
[1758518246706,0.67,231.89,231.84,5.03331953]
[1758518247907,0.68,231.88,231.82,4.98361906]
[1758518251540,4.31201759,231.91,231.82,4.31361906]
[1758518251701,0.68,231.9,231.83,0.67]
[1758518251902,31.2,231.87,231.83,0.67]
[1758518252812,31.2,231.87,231.83,4.98347823]
[1758518254410,31.2,231.87,231.83,4.31347823]
[1758518254717,31.2,231.87,231.84,0.67]
[1758518255029,31.2,231.87,231.83,4.31347823]
[1758518255318,31.2,231.87,231.84,0.67]
[1758518255523,31.2,231.87,231.85,0.67]
[1758518256414,31.2,231.87,231.82,4.98351922]
[1758518256608,31.2,231.87,231.83,0.67]
[1758518257415,0.68,231.86,231.78,13.890894]
[1758518257722,0.68,231.85,231.74,10.78778229]
[1758518258030,31.88,231.84,231.76,0.67]
[1758518259834,31.88,231.84,231.77,4.31462225]
[1758518260016,31.88,231.84,231.77,0.67]
[1758518260414,36.19332057,231.84,231.77,0.67]
[1758518261413,36.19332057,231.84,231.78,4.3144361]
[1758518262335,0.68,231.83,231.78,4.3144361]
[1758518263030,0.68,231.83,231.75,4.3149946]
[1758518263338,0.68,231.83,231.78,0.67]
[1758518263830,0.68,231.82,231.76,0.67]
[1758518265337,4.99369847,231.82,231.75,4.3149946]
[1758518265526,0.68,231.81,231.74,13.76602596]
[1758518265833,31.88,231.8,231.72,0.67]
[1758518266236,31.88,231.8,231.71,0.1]
[1758518266549,31.2,231.79,231.71,0.1]
[1758518266914,0.68,231.78,231.71,0.1]
[1758518267740,4.31462225,231.77,231.71,0.1]
[1758518267922,0.68,231.76,231.71,0.1]
[1758518268239,0.68,231.75,231.71,0.1]
[1758518268819,4.99462225,231.77,231.71,0.77]
[1758518269222,0.68,231.77,231.71,5.08572139]
[1758518271228,31.88,231.79,231.71,4.41572139]
[1758518271432,65.12,231.79,231.72,0.67]
[1758518272235,31.2,231.79,231.72,0.67]
[1758518272432,0.68,231.85,231.72,0.67]
[1758518272629,31.2,231.81,231.72,0.67]
[1758518272814,31.88,231.81,231.72,0.67]
[1758518273339,0.68,231.81,231.73,15.10378457]
[1758518273537,31.2,231.82,231.74,0.67]
[1758518273920,31.2,231.81,231.74,0.67]
[1758518274556,31.88,231.82,231.75,4.3149946]
[1758518274847,31.2,231.81,231.75,4.9849946]
[1758518275222,31.88,231.82,231.76,0.67]
[1758518275424,31.2,231.81,231.76,0.67]
[1758518275760,31.2,231.81,231.77,0.67]
[1758518275934,31.88,231.81,231.75,4.9849946]
[1758518277832,31.2,231.81,231.76,0.71]
[1758518278037,31.2,231.81,231.77,0.71]
[1758518279064,31.2,231.81,231.78,4.3144361]
[1758518279558,131.80993203,231.83,231.78,4.3144361]
[1758518279762,131.13993203,231.83,231.79,0.71]
[1758518279966,33.91,231.87,231.8,0.71]
[1758518280151,0.67,231.86,231.8,0.71]
[1758518280550,0.67,231.86,231.79,0.71]
[1758518281062,0.67,231.86,231.8,4.31406384]
[1758518281246,0.67,231.86,231.8,5.02406384]
[1758518281757,31.87,231.86,231.8,5.02406384]
[1758518281956,131.80993203,231.89,231.81,0.71]
[1758518282560,131.13993203,231.89,231.81,0.71]
[1758518282952,31.87,231.91,231.81,0.71]
[1758518283150,31.2,231.89,231.82,4.31369165]
[1758518283356,31.2,231.89,231.83,0.71]
[1758518283866,31.2,231.91,231.83,0.71]
[1758518284066,31.2,231.89,231.83,0.71]
[1758518285044,31.87,231.89,231.82,15.09792079]
[1758518285243,0.67,231.88,231.82,10.78422914]
[1758518285551,0.67,231.87,231.82,10.78422914]
[1758518285752,0.67,231.87,231.82,11.49422914]
[1758518286266,31.2,231.89,231.82,10.78422914]
[1758518286468,31.87,231.89,231.83,0.71]
[1758518286849,31.87,231.89,231.82,10.78422914]
[1758518287043,0.67,231.88,231.8,4.31406384]
[1758518287250,31.2,231.85,231.75,5.0249946]
[1758518287465,0.67,231.84,231.76,0.71]
[1758518288151,0.67,231.84,231.77,4.31462225]
[1758518288370,31.87,231.84,231.78,0.71]
[1758518288864,31.2,231.84,231.78,0.71]
[1758518289057,0.67,231.84,231.78,0.71]
[1758518290070,0.67,231.84,231.78,0.71]
[1758518290265,0.67,231.84,231.79,4.31424996]
[1758518290863,31.2,231.84,231.79,4.31424996]
[1758518291069,0.72,231.83,231.79,4.31424996]
[1758518291567,31.2,231.84,231.79,0.69]
[1758518291760,31.92,231.84,231.79,0.69]
[1758518291956,0.72,231.84,231.79,0.69]
[1758518292264,31.2,231.84,231.8,0.69]
[1758518293272,31.2,231.84,231.81,4.31387774]
[1758518293568,31.92,231.84,231.81,4.31387774]
[1758518294870,31.2,231.84,231.79,5.00424996]
[1758518295366,0.72,231.83,231.76,0.69]
[1758518296357,31.2,231.84,231.76,0.69]
[1758518296551,31.2,231.84,231.77,4.31462225]
[1758518296754,31.2,231.84,231.78,0.69]
[1758518297769,31.92,231.84,231.78,0.69]
[1758518298873,31.92,231.84,231.79,4.31424996]
[1758518299058,31.92,231.84,231.79,5.00424996]
[1758518300256,31.92,231.84,231.79,4.31424996]
[1758518300471,0.72,231.83,231.79,4.31424996]
[1758518301264,0.72,231.83,231.74,15.10313281]
[1758518301466,0.72,231.83,231.74,15.79313281]
[1758518301659,0.72,231.83,231.75,0.69]
[1758518302271,36.23363662,231.83,231.72,5.00536779]
[1758518302477,33.94,231.82,231.72,5.00536779]
[1758518302676,33.94,231.82,231.71,0.1]
[1758518302886,31.2,231.79,231.71,0.1]
[1758518303087,33.22,231.78,231.71,0.1]
[1758518303293,33.94,231.78,231.71,0.1]
[1758518303459,4.31462225,231.77,231.71,0.1]
[1758518303656,4.31462225,231.77,231.71,4.41573654]
[1758518303858,5.03462225,231.77,231.71,4.41573654]
[1758518304782,0.72,231.77,231.71,4.41573654]
[1758518305188,0.72,231.77,231.71,5.10573654]
[1758518308060,31.2,231.78,231.71,4.41573654]
[1758518308279,164.37993203,231.79,231.72,0.71]
[1758518308477,131.13993203,231.79,231.72,0.71]
[1758518309883,131.13993203,231.79,231.73,4.31536702]
[1758518310062,131.13993203,231.79,231.73,5.02536702]
[1758518310263,0.68,231.78,231.73,4.31536702]
[1758518310490,0.68,231.77,231.73,4.31536702]
[1758518311289,0.68,231.76,231.72,4.31555083]
[1758518312072,0.68,231.75,231.71,0.1]
[1758518312280,0.68,231.75,231.71,4.4157356]
[1758518312681,31.2,231.76,231.71,5.1257356]
[1758518312990,31.2,231.76,231.71,4.4157356]
[1758518313196,31.88,231.76,231.71,5.1257356]
[1758518313897,0.68,231.75,231.71,4.4157356]
[1758518314196,31.2,231.76,231.71,5.1257356]
[1758518315197,31.2,231.76,231.72,0.71]
[1758518316193,31.88,231.76,231.71,4.4157356]
[1758518316403,31.88,231.76,231.71,5.1257356]
[1758518316988,0.68,231.75,231.71,0.1]
[1758518317666,0.68,231.74,231.71,0.1]
[1758518317888,35.51486333,231.76,231.71,0.1]
[1758518317889,31.2,231.76,231.72,0.71]
[1758518319291,0.68,231.75,231.71,4.41573129]
[1758518319496,0.68,231.75,231.71,5.12573129]
[1758518319673,31.2,231.76,231.71,5.12573129]
[1758518319875,31.88,231.76,231.71,5.12573129]
[1758518320075,0.68,231.75,231.71,4.41573129]
[1758518320277,0.68,231.74,231.71,0.1]
[1758518320482,35.51495306,231.76,231.71,0.1]
[1758518320691,31.88,231.76,231.71,4.41570829]
[1758518320993,31.88,231.76,231.71,5.12570829]
[1758518321988,31.2,231.76,231.71,5.12570829]
[1758518322201,0.68,231.75,231.71,4.41570829]
[1758518322375,0.68,231.75,231.71,0.1]
[1758518322993,0.68,231.75,231.71,0.81]
[1758518323200,0.68,231.75,231.71,0.1]
[1758518324192,31.2,231.76,231.71,5.12573773]
[1758518324391,31.88,231.76,231.71,5.12573773]
[1758518324597,0.68,231.75,231.71,0.1]
[1758518324791,35.5148169,231.76,231.71,0.1]
[1758518324989,0.68,231.75,231.71,0.1]
[1758518325302,0.68,231.74,231.71,0.1]
[1758518327495,0.68,231.73,231.71,0.1]
[1758518329003,4.9949946,231.75,231.71,0.1]
[1758518329178,0.68,231.74,231.71,0.1]
[1758518330113,0.68,231.73,231.71,0.1]
[1758518332701,4.3149946,231.75,231.71,0.1]
[1758518332702,0.68,231.75,231.71,0.1]
[1758518333005,195.55993203,231.76,231.72,0.71]
[1758518333378,199.87474867,231.76,231.71,0.1]
[1758518333582,0.68,231.75,231.71,0.1]
[1758518333809,199.87474867,231.76,231.71,0.1]
[1758518334092,0.68,231.75,231.71,0.81]
[1758518334286,199.87474867,231.76,231.71,0.1]
[1758518334490,162.33993203,231.76,231.71,4.41556268]
[1758518334703,0.68,231.75,231.71,0.1]
[1758518334907,0.68,231.74,231.71,0.1]
[1758518335603,0.68,231.73,231.71,0.1]
[1758518336000,4.99503281,231.75,231.71,0.1]
[1758518336386,195.55993203,231.76,231.72,0.71]
[1758518336612,0.68,231.75,231.71,4.41563018]
[1758518337905,195.55993203,231.76,231.71,4.41563018]
[1758518338234,0.71,231.75,231.71,4.41563018]
[1758518338410,0.71,231.75,231.71,5.13563018]
[1758518338721,162.33993203,231.76,231.71,5.13563018]
[1758518338903,163.04993203,231.76,231.71,5.13563018]
[1758518339630,0.71,231.75,231.71,5.13563018]
[1758518340312,0.71,231.75,231.71,0.82]
[1758518340715,166.65474262,231.76,231.71,0.82]
[1758518341025,166.65474262,231.76,231.71,0.1]
[1758518341026,0.71,231.75,231.71,0.1]
[1758518341238,0.71,231.74,231.71,0.1]
[1758518342415,166.65474262,231.76,231.71,0.1]
[1758518342625,33.22,231.75,231.71,0.1]
[1758518342828,33.93,231.75,231.71,0.82]
[1758518346035,33.93,231.75,231.71,0.1]
[1758518346437,33.93,231.75,231.71,0.82]
[1758518346735,162.33993203,231.76,231.72,0.72]
[1758518347037,162.33993203,231.76,231.73,0.72]
[1758518347211,131.13993203,231.76,231.73,0.72]
[1758518348001,131.84993203,231.83,231.73,0.72]
[1758518348609,131.13993203,231.83,231.74,15.10313281]
[1758518348836,33.22,231.84,231.75,0.72]
[1758518349160,131.13993203,231.91,231.75,0.72]
[1758518349161,134.73054853,231.91,231.75,0.72]
[1758518349339,0.71,231.87,231.75,0.72]
[1758518349641,36.11353127,231.9,231.75,0.72]
[1758518349642,2.89353127,231.89,231.77,31.2]
[1758518349932,2.89353127,231.89,231.78,0.72]
[1758518350146,3.60353127,231.89,231.78,33.94]
[1758518350449,0.71,231.88,231.79,0.72]
[1758518350814,0.71,231.88,231.8,15.09922346]
[1758518351049,0.71,231.88,231.81,0.66]
[1758518352235,33.22,231.9,231.81,0.66]
[1758518352620,0.69,231.89,231.81,0.66]
[1758518352818,0.69,231.89,231.82,4.31369165]
[1758518353027,0.69,231.89,231.83,0.66]
[1758518354823,0.69,231.89,231.84,4.31331953]
[1758518355049,37.5322926,231.9,231.8,10.78515962]
[1758518355259,0.69,231.88,231.82,4.97358193]
[1758518355839,0.69,231.88,231.83,0.66]
[1758518356147,0.69,231.87,231.8,0.66]
[1758518357049,0.69,231.88,231.81,4.31387774]
[1758518357248,0.69,231.88,231.82,0.66]
[1758518358034,38.2222926,231.9,231.82,4.97354524]
[1758518358231,33.91,231.9,231.83,0.66]
[1758518358624,131.82993203,231.94,231.83,0.66]
[1758518358830,131.13993203,231.94,231.83,0.66]
[1758518359051,0.69,231.97,231.84,33.22]
[1758518359328,0.69,231.96,231.85,0.66]
[1758518359950,31.2,231.95,231.85,0.66]
[1758518360153,38.22145986,231.94,231.85,4.97295341]
[1758518360449,0.69,231.93,231.85,4.97295341]
[1758518361134,5.00168152,231.93,231.85,4.97295341]
[1758518361445,4.31168152,231.93,231.85,4.97295341]
[1758518361629,4.31168152,231.93,231.79,43.83899546]
[1758518361630,31.2,231.9,231.79,54.6244025]
[1758518361829,0.69,231.89,231.81,4.31372651]
[1758518362030,0.69,231.88,231.81,4.31372651]
[1758518362244,0.69,231.88,231.81,4.97372651]
[1758518362928,64.4,231.9,231.82,0.66]
[1758518363128,64.4,231.9,231.83,4.31350558]
[1758518363327,64.4,231.9,231.84,0.66]
[1758518363533,64.4,231.9,231.76,33.2]
[1758518363534,0.69,231.89,231.77,10.7864978]
[1758518363743,0.69,231.88,231.78,0.66]
[1758518365654,4.31276146,231.87,231.79,4.31424996]
[1758518365957,31.2,231.85,231.79,4.31424996]
[1758518366542,31.2,231.85,231.78,0.66]
[1758518366737,31.2,231.85,231.78,4.97441222]
[1758518367342,0.72,231.84,231.78,0.66]
[1758518368343,166.65343761,231.83,231.75,0.68]
[1758518368547,0.72,231.82,231.75,0.68]
[1758518369360,5.03382631,231.82,231.75,4.9949412]
[1758518370562,5.03382631,231.82,231.76,0.68]
[1758518371166,162.33993203,231.83,231.76,0.68]
[1758518372453,167.37344516,231.83,231.76,0.68]
[1758518372670,167.37344516,231.83,231.76,4.99476206]
[1758518373468,0.72,231.82,231.74,4.31505685]
[1758518373641,0.72,231.81,231.73,0.68]
[1758518373963,0.72,231.81,231.73,4.99534601]
[1758518374160,0.72,231.8,231.73,4.99534601]
[1758518375164,0.72,231.8,231.71,0.1]
[1758518375165,0.72,231.8,231.74,0.68]
[1758518375367,5.0341088,231.8,231.74,0.68]
[1758518377766,5.0341088,231.8,231.74,4.99510881]
[1758518377939,5.0341088,231.8,231.75,0.68]
[1758518377940,31.2,231.8,231.75,0.68]
[1758518378139,0.72,231.79,231.74,4.31510881]
[1758518378345,0.72,231.79,231.74,4.99510881]
[1758518378849,0.72,231.79,231.74,0.68]
[1758518379564,35.51418395,231.8,231.72,4.31555325]
[1758518379763,35.51418395,231.8,231.75,0.68]
[1758518380064,36.23418395,231.8,231.75,0.68]
[1758518380970,31.2,231.8,231.76,0.68]
[1758518381563,35.51408306,231.8,231.76,0.68]
[1758518381770,36.23408306,231.8,231.72,4.9954311]
[1758518381955,0.72,231.79,231.72,4.9954311]
[1758518382157,35.51408306,231.8,231.73,0.68]
[1758518382681,31.2,231.8,231.74,4.3151808]
[1758518382981,31.2,231.8,231.75,0.68]
[1758518383164,31.2,231.8,231.76,0.68]
[1758518383464,31.92,231.8,231.74,4.9951808]
[1758518383974,31.2,231.8,231.75,0.68]
[1758518384278,31.2,231.8,231.75,4.99485006]
[1758518384458,31.92,231.8,231.75,4.99485006]
[1758518385674,31.92,231.8,231.71,0.1]
[1758518385675,131.85993203,231.79,231.71,0.1]
[1758518386058,33.22,231.78,231.71,0.1]
[1758518386261,4.31462225,231.77,231.71,0.1]
[1758518386465,5.03462225,231.77,231.71,0.1]
[1758518392072,31.2,231.76,231.72,0.68]
[1758518393081,31.92,231.76,231.72,0.68]
[1758518393582,31.2,231.76,231.72,4.99550749]
[1758518393776,33.22,231.78,231.73,0.68]
[1758518393967,131.13993203,231.79,231.73,0.68]
[1758518394160,131.13993203,231.79,231.74,0.68]
[1758518394361,131.85993203,231.79,231.74,0.68]
[1758518395779,131.85993203,231.79,231.74,4.99514444]
[1758518396181,131.13993203,231.79,231.75,0.68]
[1758518396574,131.85993203,231.79,231.74,4.31514444]
[1758518397163,0.68,231.78,231.74,4.31514444]
[1758518398081,31.2,231.76,231.71,0.1]
[1758518398287,31.2,231.74,231.71,0.1]
[1758518398583,0.68,231.73,231.71,0.1]
[1758518399482,31.2,231.74,231.71,0.1]
[1758518399671,31.88,231.74,231.71,0.1]
[1758518400472,31.2,231.76,231.71,4.41573403]
[1758518400686,64.42,231.76,231.72,0.69]
[1758518400978,65.1,231.76,231.71,4.41573403]
[1758518401383,65.1,231.76,231.71,5.10573403]
[1758518401586,64.42,231.76,231.72,5.00545147]
[1758518401760,31.2,231.76,231.73,0.69]
[1758518401962,0.68,231.75,231.71,0.1]
[1758518402159,0.68,231.74,231.71,0.1]
[1758518402363,31.88,231.76,231.71,0.1]
[1758518402562,31.88,231.76,231.71,4.41571451]
[1758518402780,31.88,231.76,231.71,5.10571451]
[1758518402988,0.68,231.75,231.71,0.1]
[1758518403194,0.68,231.74,231.71,0.1]
[1758518403370,31.2,231.76,231.71,0.1]
[1758518403685,31.2,231.76,231.71,4.41573296]
[1758518403893,31.2,231.76,231.72,0.69]
[1758518404065,31.2,231.74,231.71,0.1]
[1758518404274,64.42,231.74,231.71,0.1]
[1758518404589,0.68,231.73,231.71,0.1]
[1758518404768,0.68,231.72,231.71,0.1]
[1758518405874,4.99555325,231.72,231.71,0.1]
[1758518407092,4.31555325,231.72,231.71,0.1]
[1758518407276,4.99555325,231.72,231.71,0.1]
[1758518407797,0.68,231.72,231.71,0.1]
[1758518409590,4.99555325,231.72,231.71,0.1]
[1758518410887,4.31555325,231.72,231.71,0.1]
[1758518411191,4.99555325,231.72,231.71,0.1]
[1758518411883,131.13993203,231.73,231.71,0.1]
[1758518412291,131.13993203,231.73,231.72,0.7]
[1758518412499,0.67,231.81,231.72,0.7]
[1758518412671,33.38,231.79,231.72,0.7]
[1758518412873,33.38,231.8,231.72,0.7]
[1758518413086,4.31389214,231.81,231.73,4.31536702]
[1758518413270,31.2,231.79,231.73,4.31536702]
[1758518413471,31.2,231.79,231.74,0.7]
[1758518413686,31.2,231.79,231.73,4.31536702]
[1758518413894,31.2,231.79,231.75,0.7]
[1758518414069,33.38,231.81,231.75,0.7]
[1758518414685,34.05,231.81,231.75,0.7]
[1758518415176,4.31406384,231.8,231.75,0.7]
[1758518415377,34.05,231.81,231.75,0.7]
[1758518415378,38.36388276,231.81,231.75,0.7]
[1758518416783,38.36388276,231.81,231.75,5.01496546]
[1758518417295,0.67,231.81,231.75,5.01496546]
[1758518417671,164.51993203,231.82,231.75,4.31496546]
[1758518417877,168.83364581,231.82,231.76,0.7]